[Event "Titled Tuesday Blitz June 27 Early 2023"]
[White "K2JW"]
[Black "Ernst, Sipke"]
[BlackFideId "1004689"]
[WhiteElo "2338"]
[BlackElo "2647"]
[Result "0-1"]
[Round "1"]
[TimeControl "180+2"]
[Date "2023.06.27"]
[WhiteClock "0:00:13"]
[BlackClock "0:00:05"]
[Board "158"]

1. d4 {[%clk 0:03:00]}  Nf6 {[%clk 0:02:58]} 2. c4 {[%clk 0:03:00]}  g6 {[%clk 0:02:57]} 3. Nc3 {[%clk 0:02:59]}  Bg7 {[%clk 0:02:57]} 4. e4 {[%clk 0:03:00]}  O-O {[%clk 0:02:57]} 5. Nf3 {[%clk 0:02:59]}  d6 {[%clk 0:02:56]} 6. Be2 {[%clk 0:03:00]}  Nfd7 {[%clk 0:02:56]} 7. Be3 {[%clk 0:02:47]}  a5 {[%clk 0:02:51]} 8. O-O {[%clk 0:02:40]}  Nc6 {[%clk 0:02:50]} 9. d5 {[%clk 0:02:38]}  Nb4 {[%clk 0:02:49]} 10. Nd4 {[%clk 0:02:23]}  c5 {[%clk 0:02:22]} 11. dxc6 {[%clk 0:02:19]}  Nxc6 {[%clk 0:02:13]} 12. Nd5 {[%clk 0:01:56]}  Nc5 {[%clk 0:02:10]} 13. f3 {[%clk 0:01:54]}  Nxd4 {[%clk 0:02:01]} 14. Bxd4 {[%clk 0:01:53]}  Bxd4+ {[%clk 0:02:01]} 15. Qxd4 {[%clk 0:01:54]}  e5 {[%clk 0:02:01]} 16. Qe3 {[%clk 0:01:40]}  Be6 {[%clk 0:02:01]} 17. Rfd1 {[%clk 0:01:39]}  Bxd5 {[%clk 0:02:00]} 18. Rxd5 {[%clk 0:01:38]}  Qe7 {[%clk 0:01:52]} 19. Rad1 {[%clk 0:01:34]}  Ra6 {[%clk 0:01:51]} 20. Qd2 {[%clk 0:01:31]}  Ne6 {[%clk 0:01:23]} 21. Rxd6 {[%clk 0:01:28]}  Rxd6 {[%clk 0:01:23]} 22. Qxd6 {[%clk 0:01:28]}  Qg5 {[%clk 0:01:24]} 23. Qd2 {[%clk 0:01:23]}  Qe7 {[%clk 0:01:15]} 24. Qxa5 {[%clk 0:01:14]}  Nd4 {[%clk 0:01:15]} 25. Bf1 {[%clk 0:01:14]}  f5 {[%clk 0:01:14]} 26. exf5 {[%clk 0:01:07]}  gxf5 {[%clk 0:01:14]} 27. Qd2 {[%clk 0:01:06]}  Kh8 {[%clk 0:01:07]} 28. Re1 {[%clk 0:01:04]}  Qc5 {[%clk 0:01:04]} 29. Qe3 {[%clk 0:01:01]}  Re8 {[%clk 0:00:57]} 30. f4 {[%clk 0:00:58]}  e4 {[%clk 0:00:33]} 31. b4 {[%clk 0:00:56]}  Qb6 {[%clk 0:00:29]} 32. Qc3 {[%clk 0:00:47]}  Qf6 {[%clk 0:00:28]} 33. Kh1 {[%clk 0:00:37]}  Re6 {[%clk 0:00:26]} 34. c5 {[%clk 0:00:30]}  Kg7 {[%clk 0:00:24]} 35. Bc4 {[%clk 0:00:29]}  Re7 {[%clk 0:00:23]} 36. Rd1 {[%clk 0:00:26]}  Nc6 {[%clk 0:00:11]} 37. Qxf6+ {[%clk 0:00:24]}  Kxf6 {[%clk 0:00:12]} 38. a3 {[%clk 0:00:21]}  e3 {[%clk 0:00:11]} 39. Kg1 {[%clk 0:00:21]}  Re4 {[%clk 0:00:10]} 40. Bd5 {[%clk 0:00:19]}  Rxf4 {[%clk 0:00:11]} 41. Bxc6 {[%clk 0:00:18]}  bxc6 {[%clk 0:00:11]} 42. g3 {[%clk 0:00:15]}  Rc4 {[%clk 0:00:09]} 43. Kf1 {[%clk 0:00:14]}  Ke5 {[%clk 0:00:09]} 44. Ke2 {[%clk 0:00:14]}  Ke4 {[%clk 0:00:09]} 45. Rd6 {[%clk 0:00:14]}  Rc2+ {[%clk 0:00:09]} 46. Ke1 {[%clk 0:00:14]}  Kf3 {[%clk 0:00:09]} 47. Rd3 {[%clk 0:00:11]}  Rc1+ {[%clk 0:00:06]} 48. Rd1 {[%clk 0:00:11]}  Rxd1+ {[%clk 0:00:07]} 49. Kxd1 {[%clk 0:00:12]}  Kf2 {[%clk 0:00:06]} 50. b5 {[%clk 0:00:13]}  e2+ {[%clk 0:00:06]} 51. Kc2 {[%clk 0:00:14]}  e1=Q {[%clk 0:00:06]} 52. bxc6 {[%clk 0:00:15]}  Qa5 {[%clk 0:00:06]} 53. Kd3 {[%clk 0:00:13]}  Qxc5 {[%clk 0:00:05]} 0-1


[Site "https://www.chess.com"]

[Event "Titled Tuesday Blitz June 27 Early 2023"]
[White "Dishman, Stephen"]
[Black "Taichman, Ori"]
[WhiteFideId "403024"]
[BlackFideId "2804069"]
[WhiteElo "2337"]
[BlackElo "2641"]
[Result "1-0"]
[Round "1"]
[TimeControl "180+2"]
[Date "2023.06.27"]
[WhiteClock "0:00:20"]
[BlackClock "0:00:03"]
[Board "160"]

1. c4 {[%clk 0:02:58]}  g6 {[%clk 0:02:58]} 2. g3 {[%clk 0:02:56]}  Bg7 {[%clk 0:02:58]} 3. Bg2 {[%clk 0:02:56]}  Nf6 {[%clk 0:02:58]} 4. Nf3 {[%clk 0:02:56]}  O-O {[%clk 0:02:59]} 5. d4 {[%clk 0:02:55]}  d6 {[%clk 0:02:59]} 6. Nc3 {[%clk 0:02:54]}  Nc6 {[%clk 0:03:00]} 7. O-O {[%clk 0:02:51]}  Rb8 {[%clk 0:03:00]} 8. b3 {[%clk 0:02:47]}  e5 {[%clk 0:02:59]} 9. dxe5 {[%clk 0:02:44]}  dxe5 {[%clk 0:03:00]} 10. Qxd8 {[%clk 0:02:39]}  Rxd8 {[%clk 0:03:01]} 11. Bb2 {[%clk 0:02:31]}  e4 {[%clk 0:02:30]} 12. Ng5 {[%clk 0:02:30]}  Rd2 {[%clk 0:02:28]} 13. Ba3 {[%clk 0:02:28]}  Bf5 {[%clk 0:02:06]} 14. Rad1 {[%clk 0:02:19]}  Rc2 {[%clk 0:02:06]} 15. Rc1 {[%clk 0:02:00]}  Rxc1 {[%clk 0:01:19]} 16. Rxc1 {[%clk 0:02:00]}  Re8 {[%clk 0:01:18]} 17. Rd1 {[%clk 0:01:50]}  h6 {[%clk 0:01:16]} 18. Nh3 {[%clk 0:01:49]}  Ng4 {[%clk 0:01:10]} 19. Nd5 {[%clk 0:01:47]}  Nd4 {[%clk 0:01:02]} 20. Nxc7 {[%clk 0:01:38]}  Nxe2+ {[%clk 0:01:00]} 21. Kf1 {[%clk 0:01:36]}  Rc8 {[%clk 0:00:59]} 22. Kxe2 {[%clk 0:01:33]}  Rxc7 {[%clk 0:00:58]} 23. Rd8+ {[%clk 0:01:31]}  Kh7 {[%clk 0:00:58]} 24. Bd6 {[%clk 0:01:28]}  Rc6 {[%clk 0:00:55]} 25. Nf4 {[%clk 0:01:25]}  Nxh2 {[%clk 0:00:53]} 26. Nd5 {[%clk 0:01:21]}  Bg4+ {[%clk 0:00:39]} 27. Ke3 {[%clk 0:01:19]}  Bf3 {[%clk 0:00:34]} 28. Bxf3 {[%clk 0:01:17]}  exf3 {[%clk 0:00:34]} 29. c5 {[%clk 0:01:05]}  Ra6 {[%clk 0:00:20]} 30. a4 {[%clk 0:01:04]}  h5 {[%clk 0:00:18]} 31. Rd7 {[%clk 0:01:03]}  Bh6+ {[%clk 0:00:17]} 32. Ke4 {[%clk 0:01:01]}  Kg8 {[%clk 0:00:17]} 33. Rxb7 {[%clk 0:01:00]}  f5+ {[%clk 0:00:17]} 34. Ke5 {[%clk 0:00:58]}  Ng4+ {[%clk 0:00:17]} 35. Ke6 {[%clk 0:00:58]}  Bg7 {[%clk 0:00:16]} 36. Nb4 {[%clk 0:00:55]}  Nxf2 {[%clk 0:00:15]} 37. Nxa6 {[%clk 0:00:54]}  Ne4 {[%clk 0:00:15]} 38. Rb8+ {[%clk 0:00:46]}  Kh7 {[%clk 0:00:15]} 39. c6 {[%clk 0:00:46]}  f2 {[%clk 0:00:15]} 40. c7 {[%clk 0:00:46]}  Nxd6 {[%clk 0:00:16]} 41. Kxd6 {[%clk 0:00:44]}  f1=Q {[%clk 0:00:16]} 42. c8=Q {[%clk 0:00:44]}  Qd3+ {[%clk 0:00:15]} 43. Ke6 {[%clk 0:00:42]}  Qe4+ {[%clk 0:00:15]} 44. Kf7 {[%clk 0:00:41]}  Qd5+ {[%clk 0:00:15]} 45. Qe6 {[%clk 0:00:40]}  Qxe6+ {[%clk 0:00:14]} 46. Kxe6 {[%clk 0:00:40]}  Bd4 {[%clk 0:00:13]} 47. b4 {[%clk 0:00:39]}  Bf2 {[%clk 0:00:13]} 48. Nc5 {[%clk 0:00:36]}  Bxg3 {[%clk 0:00:14]} 49. Rb7+ {[%clk 0:00:36]}  Kh6 {[%clk 0:00:14]} 50. Rxa7 {[%clk 0:00:36]}  h4 {[%clk 0:00:15]} 51. Ra8 {[%clk 0:00:33]}  Kg5 {[%clk 0:00:13]} 52. Rh8 {[%clk 0:00:33]}  Kg4 {[%clk 0:00:11]} 53. a5 {[%clk 0:00:32]}  h3 {[%clk 0:00:12]} 54. a6 {[%clk 0:00:32]}  h2 {[%clk 0:00:03]} 55. a7 {[%clk 0:00:32]}  Bh4 {[%clk 0:00:04]} 56. Rxh4+ {[%clk 0:00:30]}  Kxh4 {[%clk 0:00:04]} 57. a8=Q {[%clk 0:00:30]}  g5 {[%clk 0:00:04]} 58. Qh8+ {[%clk 0:00:29]}  Kg3 {[%clk 0:00:05]} 59. Kxf5 {[%clk 0:00:28]}  g4 {[%clk 0:00:05]} 60. Ne4+ {[%clk 0:00:28]}  Kg2 {[%clk 0:00:05]} 61. Kxg4 {[%clk 0:00:27]}  Kh1 {[%clk 0:00:05]} 62. Ng3+ {[%clk 0:00:26]}  Kg2 {[%clk 0:00:05]} 63. b5 {[%clk 0:00:26]}  Kg1 {[%clk 0:00:04]} 64. b6 {[%clk 0:00:24]}  Kg2 {[%clk 0:00:03]} 65. b7 {[%clk 0:00:24]}  Kg1 {[%clk 0:00:04]} 66. b8=Q {[%clk 0:00:23]}  h1=Q {[%clk 0:00:04]} 67. Qxh1+ {[%clk 0:00:22]}  Kf2 {[%clk 0:00:05]} 68. Qf3+ {[%clk 0:00:21]}  Ke1 {[%clk 0:00:05]} 69. Qb1+ {[%clk 0:00:21]}  Kd2 {[%clk 0:00:03]} 70. Qbd3+ {[%clk 0:00:20]} 1-0


[Site "https://www.chess.com"]

[Event "Titled Tuesday Blitz June 27 Early 2023"]
[White "Eugene, Floryan"]
[Black "Adireddy Arjun"]
[WhiteFideId "20694784"]
[BlackFideId "25647709"]
[WhiteElo "2640"]
[BlackElo "2336"]
[Result "1-0"]
[Round "1"]
[TimeControl "180+2"]
[Date "2023.06.27"]
[WhiteClock "0:00:17"]
[BlackClock "0:00:03"]
[Board "161"]

1. e4 {[%clk 0:02:57]}  c5 {[%clk 0:02:59]} 2. Nf3 {[%clk 0:02:51]}  Nc6 {[%clk 0:02:58]} 3. Nc3 {[%clk 0:02:33]}  e6 {[%clk 0:02:40]} 4. d4 {[%clk 0:02:16]}  cxd4 {[%clk 0:02:41]} 5. Nxd4 {[%clk 0:02:17]}  Qc7 {[%clk 0:02:39]} 6. Be3 {[%clk 0:02:15]}  Nf6 {[%clk 0:02:39]} 7. Qf3 {[%clk 0:01:58]}  Bb4 {[%clk 0:02:28]} 8. Nb5 {[%clk 0:01:56]}  Qb8 {[%clk 0:02:28]} 9. Bf4 {[%clk 0:01:55]}  e5 {[%clk 0:02:26]} 10. Bg5 {[%clk 0:01:54]}  Be7 {[%clk 0:01:54]} 11. Bxf6 {[%clk 0:01:49]}  Bxf6 {[%clk 0:01:50]} 12. Nd5 {[%clk 0:01:48]}  Bd8 {[%clk 0:01:45]} 13. Qa3 {[%clk 0:01:21]}  Ba5+ {[%clk 0:01:29]} 14. c3 {[%clk 0:01:17]}  Kd8 {[%clk 0:00:37]} 15. Nd6 {[%clk 0:01:11]}  Bb4 {[%clk 0:00:36]} 16. Nxf7+ {[%clk 0:00:56]}  Ke8 {[%clk 0:00:37]} 17. Nxb4 {[%clk 0:00:56]}  Kxf7 {[%clk 0:00:35]} 18. Bc4+ {[%clk 0:00:56]}  Ke8 {[%clk 0:00:33]} 19. Nd5 {[%clk 0:00:53]}  d6 {[%clk 0:00:32]} 20. O-O-O {[%clk 0:00:51]}  Rf8 {[%clk 0:00:28]} 21. Rd2 {[%clk 0:00:47]}  Bd7 {[%clk 0:00:08]} 22. Rhd1 {[%clk 0:00:47]}  Kd8 {[%clk 0:00:05]} 23. Bb5 {[%clk 0:00:43]}  a6 {[%clk 0:00:03]} 24. Nb6 {[%clk 0:00:42]}  axb5 {[%clk 0:00:02]} 25. Nxa8 {[%clk 0:00:41]}  b4 {[%clk 0:00:02]} 26. cxb4 {[%clk 0:00:39]}  Nd4 {[%clk 0:00:02]} 27. Qa5+ {[%clk 0:00:38]}  Ke7 {[%clk 0:00:02]} 28. Nb6 {[%clk 0:00:37]}  Qc7+ {[%clk 0:00:01]} 29. Kb1 {[%clk 0:00:37]}  Be6 {[%clk 0:00:01]} 30. Rxd4 {[%clk 0:00:34]}  exd4 {[%clk 0:00:01]} 31. Qg5+ {[%clk 0:00:35]}  Ke8 {[%clk 0:00:01]} 32. Nd5 {[%clk 0:00:30]}  Bxd5 {[%clk 0:00:01]} 33. exd5 {[%clk 0:00:31]}  Rxf2 {[%clk 0:00:01]} 34. Re1+ {[%clk 0:00:21]}  Kf8 {[%clk 0:00:02]} 35. Rc1 {[%clk 0:00:21]}  Qd7 {[%clk 0:00:01]} 36. Qg3 {[%clk 0:00:19]}  Qf5+ {[%clk 0:00:01]} 37. Ka1 {[%clk 0:00:19]}  Qf7 {[%clk 0:00:01]} 38. Qxd6+ {[%clk 0:00:17]}  Kg8 {[%clk 0:00:01]} 39. Rc8+ {[%clk 0:00:17]}  Qf8 {[%clk 0:00:01]} 40. Rxf8+ {[%clk 0:00:16]}  Rxf8 {[%clk 0:00:02]} 41. a4 {[%clk 0:00:16]}  Rf1+ {[%clk 0:00:02]} 42. Ka2 {[%clk 0:00:16]}  d3 {[%clk 0:00:03]} 43. Qe6+ {[%clk 0:00:17]}  Kf8 {[%clk 0:00:03]} 44. Qc8+ {[%clk 0:00:16]}  Kf7 {[%clk 0:00:04]} 45. Qxb7+ {[%clk 0:00:17]}  Kf6 {[%clk 0:00:05]} 46. Qa6+ {[%clk 0:00:17]}  Ke5 {[%clk 0:00:03]} 47. Qxd3 {[%clk 0:00:17]} 1-0


[Site "https://www.chess.com"]

[Event "Titled Tuesday Blitz June 27 Early 2023"]
[White "Romero Ruscalleda, Josep"]
[Black "Komov, Roman"]
[WhiteFideId "2231859"]
[BlackFideId "24175714"]
[WhiteElo "2335"]
[BlackElo "2638"]
[Result "1-0"]
[Round "1"]
[TimeControl "180+2"]
[Date "2023.06.27"]
[WhiteClock "0:00:50"]
[BlackClock "0:00:29"]
[Board "162"]

1. e4 {[%clk 0:02:58]}  c5 {[%clk 0:02:59]} 2. c3 {[%clk 0:02:54]}  Nf6 {[%clk 0:02:59]} 3. e5 {[%clk 0:02:53]}  Nd5 {[%clk 0:03:00]} 4. Nf3 {[%clk 0:02:52]}  Nc6 {[%clk 0:03:00]} 5. Bc4 {[%clk 0:02:51]}  Nb6 {[%clk 0:03:00]} 6. Bb3 {[%clk 0:02:51]}  d5 {[%clk 0:03:01]} 7. exd6 {[%clk 0:02:50]}  Qxd6 {[%clk 0:03:00]} 8. O-O {[%clk 0:02:51]}  c4 {[%clk 0:02:56]} 9. Bc2 {[%clk 0:02:50]}  Bg4 {[%clk 0:02:56]} 10. Re1 {[%clk 0:02:50]}  e6 {[%clk 0:02:56]} 11. Qe2 {[%clk 0:02:48]}  Be7 {[%clk 0:02:52]} 12. b3 {[%clk 0:02:47]}  cxb3 {[%clk 0:02:51]} 13. axb3 {[%clk 0:02:46]}  O-O {[%clk 0:02:44]} 14. h3 {[%clk 0:02:45]}  Bh5 {[%clk 0:02:43]} 15. Ba3 {[%clk 0:02:31]}  Qc7 {[%clk 0:02:38]} 16. Bxe7 {[%clk 0:02:29]}  Qxe7 {[%clk 0:02:38]} 17. d4 {[%clk 0:02:26]}  Rac8 {[%clk 0:02:20]} 18. Nbd2 {[%clk 0:02:23]}  Nxd4 {[%clk 0:02:16]} 19. Bxh7+ {[%clk 0:02:19]}  Kxh7 {[%clk 0:02:14]} 20. cxd4 {[%clk 0:02:17]}  a6 {[%clk 0:02:12]} 21. Ne4 {[%clk 0:02:08]}  Kg8 {[%clk 0:02:05]} 22. Ng3 {[%clk 0:01:56]}  Bxf3 {[%clk 0:01:57]} 23. Qxf3 {[%clk 0:01:55]}  Rfd8 {[%clk 0:01:51]} 24. Rad1 {[%clk 0:01:54]}  Nd5 {[%clk 0:01:48]} 25. Re5 {[%clk 0:01:42]}  Qf6 {[%clk 0:01:38]} 26. Qg4 {[%clk 0:01:33]}  Rc2 {[%clk 0:01:26]} 27. Ne4 {[%clk 0:01:17]}  Qe7 {[%clk 0:01:13]} 28. Rg5 {[%clk 0:01:12]}  g6 {[%clk 0:01:08]} 29. Re1 {[%clk 0:01:10]}  Nf6 {[%clk 0:01:07]} 30. Rxg6+ {[%clk 0:01:04]}  fxg6 {[%clk 0:00:57]} 31. Qxg6+ {[%clk 0:01:04]}  Kh8 {[%clk 0:00:39]} 32. Nxf6 {[%clk 0:00:52]}  Rxd4 {[%clk 0:00:29]} 33. Qh6+ {[%clk 0:00:50]} 1-0


[Site "https://www.chess.com"]

[Event "Titled Tuesday Blitz June 27 Early 2023"]
[White "Jakubowski, Krzysztof"]
[Black "Garrido Outon, Alex"]
[WhiteFideId "1112848"]
[BlackFideId "24516279"]
[WhiteElo "2635"]
[BlackElo "2335"]
[Result "0-1"]
[Round "1"]
[TimeControl "180+2"]
[Date "2023.06.27"]
[WhiteClock "0:00:00"]
[BlackClock "0:00:08"]
[Board "163"]

1. c4 {[%clk 0:02:58]}  Nf6 {[%clk 0:02:55]} 2. Nc3 {[%clk 0:02:56]}  d6 {[%clk 0:02:54]} 3. d4 {[%clk 0:02:53]}  Nbd7 {[%clk 0:02:53]} 4. e4 {[%clk 0:02:52]}  e5 {[%clk 0:02:53]} 5. Nge2 {[%clk 0:02:51]}  g6 {[%clk 0:02:53]} 6. d5 {[%clk 0:02:45]}  h5 {[%clk 0:02:41]} 7. Qc2 {[%clk 0:02:43]}  Bh6 {[%clk 0:02:37]} 8. Bxh6 {[%clk 0:02:42]}  Rxh6 {[%clk 0:02:38]} 9. O-O-O {[%clk 0:02:40]}  a6 {[%clk 0:02:29]} 10. Kb1 {[%clk 0:02:39]}  h4 {[%clk 0:02:28]} 11. Nc1 {[%clk 0:02:33]}  Kf8 {[%clk 0:02:25]} 12. Be2 {[%clk 0:02:32]}  Kg7 {[%clk 0:02:25]} 13. g3 {[%clk 0:02:29]}  Qe7 {[%clk 0:02:20]} 14. f4 {[%clk 0:02:29]}  Nc5 {[%clk 0:02:16]} 15. fxe5 {[%clk 0:02:17]}  Qxe5 {[%clk 0:02:12]} 16. Bf3 {[%clk 0:02:06]}  hxg3 {[%clk 0:02:01]} 17. b4 {[%clk 0:02:02]}  Ncd7 {[%clk 0:01:48]} 18. Nd3 {[%clk 0:02:00]}  Qd4 {[%clk 0:01:18]} 19. hxg3 {[%clk 0:01:41]}  Rxh1 {[%clk 0:01:17]} 20. Rxh1 {[%clk 0:01:40]}  Qxc4 {[%clk 0:01:08]} 21. Qh2 {[%clk 0:01:24]}  Qxd3+ {[%clk 0:01:05]} 22. Kb2 {[%clk 0:01:22]}  Kf8 {[%clk 0:00:58]} 23. Qh6+ {[%clk 0:00:48]}  Ke7 {[%clk 0:00:57]} 24. Be2 {[%clk 0:00:48]}  Qd4 {[%clk 0:00:54]} 25. Qg7 {[%clk 0:00:46]}  Ne5 {[%clk 0:00:47]} 26. Rh8 {[%clk 0:00:41]}  Qxb4+ {[%clk 0:00:33]} 27. Kc2 {[%clk 0:00:39]}  Ned7 {[%clk 0:00:19]} 28. Bd3 {[%clk 0:00:16]}  b5 {[%clk 0:00:17]} 29. g4 {[%clk 0:00:16]}  Bb7 {[%clk 0:00:17]} 30. g5 {[%clk 0:00:16]}  Ng4 {[%clk 0:00:13]} 31. Rh7 {[%clk 0:00:13]}  Nge5 {[%clk 0:00:12]} 32. Be2 {[%clk 0:00:09]}  Qc5 {[%clk 0:00:12]} 33. Bg4 {[%clk 0:00:07]}  b4 {[%clk 0:00:12]} 34. Bxd7 {[%clk 0:00:04]}  Qxc3+ {[%clk 0:00:12]} 35. Kb1 {[%clk 0:00:05]}  Kxd7 {[%clk 0:00:11]} 36. Qf6 {[%clk 0:00:00]}  Re8 {[%clk 0:00:08]} 0-1


[Site "https://www.chess.com"]

[Event "Titled Tuesday Blitz June 27 Early 2023"]
[White "Davidson, Kevin"]
[Black "TimGrutter03"]
[WhiteFideId "2056810"]
[WhiteElo "2330"]
[BlackElo "2631"]
[Result "0-1"]
[Round "1"]
[TimeControl "180+2"]
[Date "2023.06.27"]
[WhiteClock "0:00:06"]
[BlackClock "0:01:15"]
[Board "164"]

1. e4 {[%clk 0:02:58]}  c6 {[%clk 0:02:58]} 2. d4 {[%clk 0:02:57]}  d5 {[%clk 0:02:59]} 3. e5 {[%clk 0:02:45]}  c5 {[%clk 0:02:57]} 4. dxc5 {[%clk 0:02:45]}  e6 {[%clk 0:02:57]} 5. a3 {[%clk 0:02:44]}  Bxc5 {[%clk 0:02:55]} 6. Qg4 {[%clk 0:02:37]}  Ne7 {[%clk 0:02:52]} 7. Nf3 {[%clk 0:02:26]}  Qb6 {[%clk 0:02:32]} 8. Bd3 {[%clk 0:02:24]}  Bxf2+ {[%clk 0:02:32]} 9. Ke2 {[%clk 0:02:25]}  Nbc6 {[%clk 0:02:15]} 10. Nc3 {[%clk 0:01:59]}  Nd4+ {[%clk 0:01:43]} 11. Nxd4 {[%clk 0:01:24]}  Qxd4 {[%clk 0:01:38]} 12. Qxg7 {[%clk 0:00:46]}  Rg8 {[%clk 0:01:37]} 13. Qf6 {[%clk 0:00:46]}  Rxg2 {[%clk 0:01:23]} 14. Kf1 {[%clk 0:00:06]}  Bh4 {[%clk 0:01:15]} 0-1


[Site "https://www.chess.com"]

[Event "Titled Tuesday Blitz June 27 Early 2023"]
[White "Soham Kamotra"]
[Black "Sairam, Pranav"]
[WhiteFideId "46647490"]
[BlackFideId "30951330"]
[WhiteElo "2629"]
[BlackElo "2330"]
[Result "1-0"]
[Round "1"]
[TimeControl "180+2"]
[Date "2023.06.27"]
[WhiteClock "0:00:26"]
[BlackClock "0:00:00"]
[Board "165"]

1. c4 {[%clk 0:02:28]}  e6 {[%clk 0:02:58]} 2. g3 {[%clk 0:02:26]}  Nf6 {[%clk 0:02:57]} 3. Bg2 {[%clk 0:02:27]}  d5 {[%clk 0:02:57]} 4. Nf3 {[%clk 0:02:27]}  Be7 {[%clk 0:02:57]} 5. O-O {[%clk 0:02:28]}  O-O {[%clk 0:02:57]} 6. b3 {[%clk 0:02:29]}  b6 {[%clk 0:02:35]} 7. Bb2 {[%clk 0:02:26]}  Bb7 {[%clk 0:02:15]} 8. e3 {[%clk 0:02:18]}  Nbd7 {[%clk 0:02:14]} 9. Nc3 {[%clk 0:02:17]}  dxc4 {[%clk 0:01:48]} 10. bxc4 {[%clk 0:02:10]}  c5 {[%clk 0:01:48]} 11. Qe2 {[%clk 0:02:08]}  e5 {[%clk 0:01:44]} 12. e4 {[%clk 0:01:56]}  Bd6 {[%clk 0:01:35]} 13. Nd5 {[%clk 0:01:51]}  Re8 {[%clk 0:01:30]} 14. Rfe1 {[%clk 0:01:48]}  h6 {[%clk 0:01:24]} 15. d3 {[%clk 0:01:46]}  Rb8 {[%clk 0:01:10]} 16. Bc3 {[%clk 0:01:43]}  Nf8 {[%clk 0:00:47]} 17. a4 {[%clk 0:01:29]}  Bc6 {[%clk 0:00:30]} 18. Qb2 {[%clk 0:01:24]}  Ng6 {[%clk 0:00:28]} 19. Bh3 {[%clk 0:01:15]}  a6 {[%clk 0:00:25]} 20. Bf5 {[%clk 0:01:03]}  b5 {[%clk 0:00:24]} 21. axb5 {[%clk 0:00:45]}  axb5 {[%clk 0:00:24]} 22. Bxg6 {[%clk 0:00:39]}  bxc4 {[%clk 0:00:17]} 23. Qd2 {[%clk 0:00:31]}  fxg6 {[%clk 0:00:16]} 24. dxc4 {[%clk 0:00:31]}  Rb3 {[%clk 0:00:14]} 25. Nh4 {[%clk 0:00:30]}  g5 {[%clk 0:00:14]} 26. Nf5 {[%clk 0:00:29]}  Nxd5 {[%clk 0:00:14]} 27. exd5 {[%clk 0:00:27]}  Bb7 {[%clk 0:00:00]} 28. Qc2 {[%clk 0:00:26]} 1-0


[Site "https://www.chess.com"]

[Event "Titled Tuesday Blitz June 27 Early 2023"]
[White "Rosenberg, Evan S"]
[Black "Manukyan, Sargis V."]
[WhiteFideId "2019299"]
[BlackFideId "13303465"]
[WhiteElo "2329"]
[BlackElo "2628"]
[Result "1/2-1/2"]
[Round "1"]
[TimeControl "180+2"]
[Date "2023.06.27"]
[WhiteClock "0:01:08"]
[BlackClock "0:00:14"]
[Board "166"]

1. d4 {[%clk 0:03:00]}  Nf6 {[%clk 0:02:38]} 2. Nf3 {[%clk 0:02:58]}  c5 {[%clk 0:02:38]} 3. d5 {[%clk 0:02:56]}  e6 {[%clk 0:02:37]} 4. Nc3 {[%clk 0:02:51]}  exd5 {[%clk 0:02:32]} 5. Nxd5 {[%clk 0:02:50]}  Nxd5 {[%clk 0:02:30]} 6. Qxd5 {[%clk 0:02:49]}  Be7 {[%clk 0:02:31]} 7. Bf4 {[%clk 0:02:43]}  O-O {[%clk 0:02:29]} 8. Rd1 {[%clk 0:02:38]}  Nc6 {[%clk 0:02:28]} 9. c3 {[%clk 0:02:38]}  Qb6 {[%clk 0:02:20]} 10. Rd2 {[%clk 0:02:36]}  d6 {[%clk 0:02:11]} 11. Qb3 {[%clk 0:02:20]}  Rd8 {[%clk 0:02:02]} 12. Qxb6 {[%clk 0:02:16]}  axb6 {[%clk 0:02:00]} 13. a3 {[%clk 0:02:17]}  b5 {[%clk 0:01:59]} 14. e3 {[%clk 0:02:17]}  b4 {[%clk 0:01:58]} 15. axb4 {[%clk 0:02:14]}  cxb4 {[%clk 0:01:58]} 16. Bc4 {[%clk 0:02:12]}  Ra1+ {[%clk 0:01:53]} 17. Rd1 {[%clk 0:02:11]}  Rxd1+ {[%clk 0:01:48]} 18. Kxd1 {[%clk 0:02:12]}  Bf5 {[%clk 0:01:38]} 19. Ke2 {[%clk 0:02:04]}  d5 {[%clk 0:01:22]} 20. Bd3 {[%clk 0:02:02]}  Be4 {[%clk 0:01:18]} 21. Rd1 {[%clk 0:01:59]}  bxc3 {[%clk 0:01:06]} 22. bxc3 {[%clk 0:01:58]}  Ra8 {[%clk 0:01:07]} 23. Rd2 {[%clk 0:01:47]}  Ra1 {[%clk 0:00:59]} 24. Bxe4 {[%clk 0:01:40]}  dxe4 {[%clk 0:00:58]} 25. Ng5 {[%clk 0:01:40]}  Bxg5 {[%clk 0:00:54]} 26. Bxg5 {[%clk 0:01:41]}  f6 {[%clk 0:00:53]} 27. Bf4 {[%clk 0:01:41]}  Rb1 {[%clk 0:00:50]} 28. f3 {[%clk 0:01:36]}  exf3+ {[%clk 0:00:45]} 29. gxf3 {[%clk 0:01:37]}  Rb3 {[%clk 0:00:44]} 30. c4 {[%clk 0:01:35]}  Kf7 {[%clk 0:00:30]} 31. Rd7+ {[%clk 0:01:34]}  Kg6 {[%clk 0:00:24]} 32. h4 {[%clk 0:01:33]}  h5 {[%clk 0:00:22]} 33. Bd6 {[%clk 0:01:29]}  Ne5 {[%clk 0:00:15]} 34. Bxe5 {[%clk 0:01:27]}  fxe5 {[%clk 0:00:16]} 35. e4 {[%clk 0:01:26]}  Rb4 {[%clk 0:00:14]} 36. c5 {[%clk 0:01:25]}  Rc4 {[%clk 0:00:14]} 37. Rxb7 {[%clk 0:01:24]}  Rxc5 {[%clk 0:00:15]} 38. Rb6+ {[%clk 0:01:19]}  Kf7 {[%clk 0:00:14]} 39. Ke3 {[%clk 0:01:18]}  Rc1 {[%clk 0:00:14]} 40. Rb7+ {[%clk 0:01:10]}  Kf6 {[%clk 0:00:14]} 41. Rb6+ {[%clk 0:01:11]}  Kf7 {[%clk 0:00:14]} 42. Rb7+ {[%clk 0:01:08]}  Kf6 {[%clk 0:00:14]} 1/2-1/2


[Site "https://www.chess.com"]

[Event "Titled Tuesday Blitz June 27 Early 2023"]
[White "Vifleemskaia, Svetlana"]
[Black "Zochowski, Kacper"]
[WhiteFideId "4129490"]
[BlackFideId "1125494"]
[WhiteElo "2316"]
[BlackElo "2627"]
[Result "0-1"]
[Round "1"]
[TimeControl "180+2"]
[Date "2023.06.27"]
[WhiteClock "0:00:00"]
[BlackClock "0:02:14"]
[Board "168"]

1. d4 {[%clk 0:02:56]}  d6 {[%clk 0:03:00]} 2. c4 {[%clk 0:02:56]}  Nf6 {[%clk 0:03:00]} 3. Nc3 {[%clk 0:02:55]}  Nbd7 {[%clk 0:03:01]} 4. e4 {[%clk 0:02:55]}  e5 {[%clk 0:03:00]} 5. d5 {[%clk 0:02:55]}  g6 {[%clk 0:03:01]} 6. Nge2 {[%clk 0:02:54]}  Bg7 {[%clk 0:03:01]} 7. Ng3 {[%clk 0:02:55]}  h5 {[%clk 0:03:01]} 8. Bg5 {[%clk 0:02:53]}  h4 {[%clk 0:02:56]} 9. Nge2 {[%clk 0:02:52]}  Rh5 {[%clk 0:02:57]} 10. Qd2 {[%clk 0:02:48]}  a5 {[%clk 0:02:54]} 11. h3 {[%clk 0:02:28]}  b6 {[%clk 0:02:52]} 12. O-O-O {[%clk 0:02:26]}  Nc5 {[%clk 0:02:52]} 13. Qe3 {[%clk 0:02:18]}  Ba6 {[%clk 0:02:51]} 14. b3 {[%clk 0:02:05]}  Qe7 {[%clk 0:02:51]} 15. a4 {[%clk 0:01:52]}  O-O-O {[%clk 0:02:48]} 16. Kc2 {[%clk 0:01:49]}  Kb8 {[%clk 0:02:47]} 17. f3 {[%clk 0:01:42]}  Qd7 {[%clk 0:02:46]} 18. Nc1 {[%clk 0:01:38]}  Rdh8 {[%clk 0:02:43]} 19. Qd2 {[%clk 0:01:27]}  Qe7 {[%clk 0:02:39]} 20. Be3 {[%clk 0:01:21]}  Nfd7 {[%clk 0:02:38]} 21. Be2 {[%clk 0:01:17]}  Bh6 {[%clk 0:02:38]} 22. Nd3 {[%clk 0:01:01]}  Bxe3 {[%clk 0:02:37]} 23. Qxe3 {[%clk 0:01:00]}  f5 {[%clk 0:02:38]} 24. Nxc5 {[%clk 0:00:54]}  Nxc5 {[%clk 0:02:38]} 25. f4 {[%clk 0:00:39]}  R5h7 {[%clk 0:02:28]} 26. Rhe1 {[%clk 0:00:32]}  exf4 {[%clk 0:02:25]} 27. Qxf4 {[%clk 0:00:30]}  fxe4 {[%clk 0:02:26]} 28. Bg4 {[%clk 0:00:28]}  Rf7 {[%clk 0:02:26]} 29. Qe3 {[%clk 0:00:24]}  Re8 {[%clk 0:02:26]} 30. Rd4 {[%clk 0:00:20]}  g5 {[%clk 0:02:20]} 31. Re2 {[%clk 0:00:13]}  Bc8 {[%clk 0:02:20]} 32. Bxc8 {[%clk 0:00:09]}  Kxc8 {[%clk 0:02:20]} 33. Qg1 {[%clk 0:00:06]}  Rf4 {[%clk 0:02:18]} 34. Qe1 {[%clk 0:00:06]}  Qe5 {[%clk 0:02:18]} 35. Rdd2 {[%clk 0:00:02]}  e3 {[%clk 0:02:18]} 36. Rd1 {[%clk 0:00:00]}  Rf2 {[%clk 0:02:14]} 0-1


[Site "https://www.chess.com"]